[Event "Konyaalti Open-A 2019"]
[Site "Konyaalti"]
[Date "2019.11.23"]
[Round "9.5"]
[White "Moiseenko, Vadim"]
[Black "Bashirli, Nail"]
[Result "1/2-1/2"]
[ECO "B88"]
[WhiteElo "2532"]
[BlackElo "2383"]
[Annotator "ChessBase"]
[PlyCount "66"]
[EventDate "2019.11.20"]
[EventType "swiss"]
[EventCountry "TUR"]
[SourceTitle "playchess.com"]
[Source "ChessBase"]
[SourceQuality "1"]
[TimeControl "5400+30"]

1. e4 {[%emt 0:07:30]} c5 {[%emt 0:09:30]} 2. Nf3 {[%emt 0:00:00]} d6 {[%emt 0:00:00]} 3. d4 {[%emt 0:00:00]} cxd4 {[%emt 0:00:00]} 4. Nxd4 {[%emt 0:00:00]} Nf6 {[%emt 0:00:00]} 5. Nc3 {[%emt 0:00:00]} Nc6 {[%emt 0:00:00]} 6. Bc4 {[%emt 0:00:30]} e6 {[%emt 0:00:30]} 7. Be3 {[%emt 0:00:00]} a6 {[%emt 0:01:30]} 8. f4 {[%emt 0:00:00]} Qc7 {[%emt 0:01:30]} 9. Bb3 {[%emt 0:00:00]} Be7 {[%emt 0:08:30]} 10. Qf3 {[%emt 0:01:00]} O-O {[%emt 0:09:30]} 11. f5 {[%emt 0:00:30]} Nxd4 {[%emt 0:08:30]} 12. Bxd4 {[%emt 0:00:30]} b5 {[%emt 0:01:30]} 13. a3 {[%emt 0:03:30]} Rb8 {[%emt 0:10:30]} 14. fxe6 {[%emt 0:06:30]} Bxe6 {[%emt 0:02:30]} 15. O-O {[%emt 0:00:30]} b4 {[%emt 0:09:30]} 16. Nd5 {[%emt 0:00:30]} Bxd5 {[%emt 0:00:30]} 17. exd5 {[%emt 0:00:00]} Nd7 {[%emt 0:10:30]} 18. axb4 {[%emt 0:01:00]} Rxb4 {[%emt 0:00:00]} 19. Qc3 {[%emt 0:00:00]} Qb7 {[%emt 0:09:21]} 20. Bxg7 {[%emt 0:03:00]} Rc8 {[%emt 0:01:49]} 21. Qf3 {[%emt 0:00:30]} f6 {[%emt 0:00:08]} 22. Bh6 {[%emt 0:00:30]} Ne5 {[%emt 0:00:05]} 23. Qf5 {[%emt 0:00:30]} Kh8 {[%emt 0:01:21]} 24. h3 {[%emt 0:02:30]} Rg8 {[%emt 0:01:07]} 25. Kh1 {[%emt 0:01:30]} Bd8 {[%emt 0:03:07]} 26. Qe6 {[%emt 0:03:30]} Rh4 {[%emt 0:01:03]} 27. Rxf6 {[%emt 0:00:30]} Rxh6 {[%emt 0:05:20]} 28. Rxh6 {[%emt 0:00:30]} Qg7 {[%emt 0:00:06]} 29. g4 {[%emt 0:03:30]} Qf8 {[%emt 0:00:22]} 30. Rg1 {[%emt 0:05:30]} Qf3+ {[%emt 0:03:05]} 31. Rg2 {[%emt 0:00:00]} Bg5 {[%emt 0:01:15]} 32. Rh5 {[%emt 0:00:00]} Qf1+ {[%emt 0:02:41]} 33. Rg1 {[%emt 0:00:30]} Qf3+ {[%emt 0:00:35]} 1/2-1/2

[Event "Konyaalti Open-A 2019"]
[Site "Konyaalti"]
[Date "2019.11.23"]
[Round "9.7"]
[White "Kiremitciyan, Ari"]
[Black "Yurtseven, Melih"]
[Result "1/2-1/2"]
[ECO "A13"]
[WhiteElo "2264"]
[BlackElo "2388"]
[Annotator "ChessBase"]
[PlyCount "59"]
[EventDate "2019.11.20"]
[EventType "swiss"]
[EventCountry "TUR"]
[SourceTitle "playchess.com"]
[Source "ChessBase"]
[SourceQuality "1"]
[TimeControl "5400+30"]

1. Nf3 {[%emt 0:00:30]} Nf6 {[%emt 0:08:30]} 2. c4 {[%emt 0:00:30]} e6 {[%emt 0:00:00]} 3. g3 {[%emt 0:09:30]} a6 {[%emt 0:03:00]} 4. Bg2 {[%emt 0:09:30]} b5 {[%emt 0:00:00]} 5. b3 {[%emt 0:00:30]} Bb7 {[%emt 0:00:00]} 6. O-O {[%emt 0:00:30]} Be7 {[%emt 0:00:30]} 7. Na3 {[%emt 0:02:30]} b4 {[%emt 0:02:30]} 8. Nc2 {[%emt 0:00:30]} c5 {[%emt 0:00:30]} 9. Ne3 {[%emt 0:04:30]} d6 {[%emt 0:04:30]} 10. a3 {[%emt 0:03:30]} a5 {[%emt 0:01:30]} 11. d4 {[%emt 0:09:30]} Nbd7 {[%emt 0:00:30]} 12. d5 {[%emt 0:15:30]} exd5 {[%emt 0:00:30]} 13. Nh4 {[%emt 0:00:30]} Nb6 {[%emt 0:00:30]} 14. cxd5 {[%emt 0:06:30]} g6 {[%emt 0:05:30]} 15. Bb2 {[%emt 0:01:30]} O-O {[%emt 0:03:30]} 16. axb4 {[%emt 0:02:30]} axb4 {[%emt 0:00:00]} 17. Rxa8 {[%emt 0:00:30]} Bxa8 {[%emt 0:00:00]} 18. Qd2 {[%emt 0:04:30]} Nbd7 {[%emt 0:17:30]} 19. Ra1 {[%emt 0:05:30]} Re8 {[%emt 0:03:30]} 20. Nef5 {[%emt 0:07:27]} Bf8 {[%emt 0:06:30]} 21. e4 {[%emt 0:05:05]} Nxe4 {[%emt 0:18:30]} 22. Bxe4 {[%emt 0:03:46]} Rxe4 {[%emt 0:00:30]} 23. f3 {[%emt 0:05:42]} Re8 {[%emt 0:09:41]} 24. Nh6+ {[%emt 0:00:15]} Bxh6 {[%emt 0:00:02]} 25. Qxh6 {[%emt 0:00:03]} f6 {[%emt 0:11:03]} 26. Nxg6 {[%emt 0:00:02]} hxg6 {[%emt 0:03:37]} 27. Qxg6+ {[%emt 0:00:02]} Kf8 {[%emt 0:00:07]} 28. Qh6+ {[%emt 0:00:59]} Kg8 {[%emt 0:00:04]} 29. Qg6+ {[%emt 0:00:05]} Kf8 {[%emt 0:00:03]} 30. Qh6+ {[%emt 0:00:18]} 1/2-1/2

[Event "Konyaalti Open-A 2019"]
[Site "Konyaalti"]
[Date "2019.11.23"]
[Round "9.9"]
[White "Samani, Yamac"]
[Black "Mirzoev, Azer"]
[Result "0-1"]
[ECO "C75"]
[WhiteElo "2305"]
[BlackElo "2472"]
[Annotator "ChessBase"]
[PlyCount "206"]
[EventDate "2019.11.20"]
[EventType "swiss"]
[EventCountry "TUR"]
[SourceTitle "playchess.com"]
[Source "ChessBase"]
[SourceQuality "1"]
[TimeControl "5400+30"]

1. e4 {[%emt 0:08:30]} e5 {[%emt 0:00:30]} 2. Nf3 {[%emt 0:00:30]} Nc6 {[%emt 0:00:00]} 3. Bb5 {[%emt 0:00:00]} Nge7 {[%emt 0:00:00]} 4. O-O {[%emt 0:01:00]} a6 {[%emt 0:00:30]} 5. Ba4 {[%emt 0:00:30]} d6 {[%emt 0:00:00]} 6. c3 {[%emt 0:00:30]} Bd7 {[%emt 0:00:00]} 7. d4 {[%emt 0:00:30]} Ng6 {[%emt 0:00:30]} 8. Be3 {[%emt 0:02:30]} Be7 {[%emt 0:00:30]} 9. d5 {[%emt 0:02:30]} Nb8 {[%emt 0:00:30]} 10. Bc2 {[%emt 0:00:30]} O-O {[%emt 0:00:00]} 11. c4 {[%emt 0:00:30]} c5 {[%emt 0:03:00]} 12. dxc6 {[%emt 0:03:30]} bxc6 {[%emt 0:00:30]} 13. Nc3 {[%emt 0:02:30]} c5 {[%emt 0:11:30]} 14. Nd5 {[%emt 0:00:30]} Nc6 {[%emt 0:00:00]} 15. Ba4 {[%emt 0:03:30]} Rb8 {[%emt 0:08:00]} 16. Rb1 {[%emt 0:06:30]} h6 {[%emt 0:02:30]} 17. a3 {[%emt 0:03:30]} Nd4 {[%emt 0:01:30]} 18. Bxd7 {[%emt 0:03:30]} Qxd7 {[%emt 0:00:30]} 19. b4 {[%emt 0:05:30]} Rfc8 {[%emt 0:07:30]} 20. Bxd4 {[%emt 0:04:30]} cxd4 {[%emt 0:01:30]} 21. Qd3 {[%emt 0:02:30]} Qa4 {[%emt 0:03:30]} 22. Rfc1 {[%emt 0:06:30]} Bg5 {[%emt 0:01:30]} 23. Rc2 {[%emt 0:04:30]} Ne7 {[%emt 0:01:30]} 24. Nxe7+ {[%emt 0:02:30]} Bxe7 {[%emt 0:00:30]} 25. Ne1 {[%emt 0:03:30]} g6 {[%emt 0:01:30]} 26. Qb3 {[%emt 0:02:30]} Qc6 {[%emt 0:00:30]} 27. f3 {[%emt 0:00:30]} Kg7 {[%emt 0:01:30]} 28. b5 {[%emt 0:09:30]} Qb6 {[%emt 0:09:30]} 29. Kh1 {[%emt 0:09:01]} axb5 {[%emt 0:09:30]} 30. cxb5 {[%emt 0:00:09]} Rxc2 {[%emt 0:00:30]} 31. Nxc2 {[%emt 0:02:05]} Rc8 {[%emt 0:00:30]} 32. a4 {[%emt 0:00:09]} Rc3 {[%emt 0:00:30]} 33. Qb2 {[%emt 0:01:19]} Qc5 {[%emt 0:07:30]} 34. Nb4 {[%emt 0:00:38]} Bg5 {[%emt 0:01:30]} 35. a5 {[%emt 0:03:21]} d3 {[%emt 0:02:30]} 36. Nxd3 {[%emt 0:02:55]} Rxd3 {[%emt 0:00:00]} 37. b6 {[%emt 0:00:09]} Bd8 {[%emt 0:02:00]} 38. b7 {[%emt 0:01:28]} Bc7 {[%emt 0:00:00]} 39. b8=Q {[%emt 0:01:31]} Bxb8 {[%emt 0:00:00]} 40. Qxb8 {[%emt 0:00:00]} Qxa5 {[%emt 0:00:30]} 41. h3 {[%emt 0:00:26]} Rd2 {[%emt 0:00:30]} 42. Qc8 {[%emt 0:00:58]} Rb2 {[%emt 0:06:35]} 43. Rxb2 {[%emt 0:00:29]} Qa1+ {[%emt 0:00:25]} 44. Kh2 {[%emt 0:00:03]} Qxb2 {[%emt 0:00:30]} 45. Qd7 {[%emt 0:00:17]} Qd2 {[%emt 0:00:00]} 46. Qe7 {[%emt 0:00:38]} Qf4+ {[%emt 0:00:00]} 47. Kg1 {[%emt 0:00:32]} Qf6 {[%emt 0:00:30]} 48. Qd7 {[%emt 0:00:35]} h5 {[%emt 0:00:30]} 49. Kf2 {[%emt 0:00:47]} Qe6 {[%emt 0:01:30]} 50. Qb7 {[%emt 0:00:27]} Kf6 {[%emt 0:00:30]} 51. Qc7 {[%emt 0:00:46]} Qe7 {[%emt 0:00:30]} 52. Qc8 {[%emt 0:00:34]} Kg7 {[%emt 0:00:30]} 53. Kg1 {[%emt 0:00:37]} Kf6 {[%emt 0:02:16]} 54. Kh2 {[%emt 0:00:23]} Qa7 {[%emt 0:00:12]} 55. Qd8+ {[%emt 0:00:28]} Ke6 {[%emt 0:00:10]} 56. Qe8+ {[%emt 0:00:17]} Qe7 {[%emt 0:00:10]} 57. Qc8+ {[%emt 0:00:37]} Qd7 {[%emt 0:00:03]} 58. Qc4+ {[%emt 0:00:09]} Ke7 {[%emt 0:01:31]} 59. Qd5 {[%emt 0:00:16]} f5 {[%emt 0:00:51]} 60. Qg8 {[%emt 0:01:35]} Qe6 {[%emt 0:00:09]} 61. Qa8 {[%emt 0:00:30]} fxe4 {[%emt 0:00:29]} 62. fxe4 {[%emt 0:00:04]} Kf7 {[%emt 0:00:08]} 63. Qb7+ {[%emt 0:00:22]} Qe7 {[%emt 0:00:05]} 64. Qd5+ {[%emt 0:00:22]} Kg7 {[%emt 0:00:06]} 65. Kh1 {[%emt 0:00:42]} Qf6 {[%emt 0:00:20]} 66. Kg1 {[%emt 0:00:25]} Qe7 {[%emt 0:02:37]} 67. Kh2 {[%emt 0:00:24]} g5 {[%emt 0:00:54]} 68. Qd1 {[%emt 0:01:13]} Kh6 {[%emt 0:01:25]} 69. Qf3 {[%emt 0:00:59]} Qe6 {[%emt 0:00:34]} 70. Qf8+ {[%emt 0:01:49]} Kg6 {[%emt 0:00:02]} 71. Qd8 {[%emt 0:00:17]} h4 {[%emt 0:00:37]} 72. Qa8 {[%emt 0:00:50]} g4 {[%emt 0:00:42]} 73. hxg4 {[%emt 0:00:28]} Kg5 {[%emt 0:00:09]} 74. Qf8 {[%emt 0:00:37]} Kxg4 {[%emt 0:00:16]} 75. Qf3+ {[%emt 0:00:18]} Kg5 {[%emt 0:00:12]} 76. Qe3+ {[%emt 0:00:07]} Kh5 {[%emt 0:00:59]} 77. Qf3+ {[%emt 0:00:18]} Qg4 {[%emt 0:00:48]} 78. Qf7+ {[%emt 0:00:12]} Qg6 {[%emt 0:00:13]} 79. Qf3+ {[%emt 0:00:18]} Qg4 {[%emt 0:02:01]} 80. Qf7+ {[%emt 0:00:43]} Kg5 {[%emt 0:00:08]} 81. Qe7+ {[%emt 0:01:27]} Kf4 {[%emt 0:00:03]} 82. Qxd6 {[%emt 0:00:18]} Qg3+ {[%emt 0:00:23]} 83. Kh1 {[%emt 0:00:06]} Qe1+ {[%emt 0:01:52]} 84. Kh2 {[%emt 0:00:02]} Qxe4 {[%emt 0:00:11]} 85. Qh6+ {[%emt 0:00:26]} Kg4 {[%emt 0:00:26]} 86. Qg7+ {[%emt 0:00:09]} Kh5 {[%emt 0:00:29]} 87. Qh8+ {[%emt 0:00:28]} Kg6 {[%emt 0:00:13]} 88. Qg8+ {[%emt 0:00:45]} Kf6 {[%emt 0:00:28]} 89. Qh8+ {[%emt 0:00:21]} Ke6 {[%emt 0:00:08]} 90. Kh3 {[%emt 0:02:23]} Kd5 {[%emt 0:00:38]} 91. Qd8+ {[%emt 0:00:45]} Kc4 {[%emt 0:00:17]} 92. Qg8+ {[%emt 0:01:13]} Kc3 {[%emt 0:00:11]} 93. Qc8+ {[%emt 0:00:00]} Kd2 {[%emt 0:00:05]} 94. Kh2 {[%emt 0:00:00]} Qd4 {[%emt 0:00:33]} 95. Qh8 {[%emt 0:00:05]} Kd3 {[%emt 0:01:14]} 96. Qh7+ {[%emt 0:00:18]} e4 {[%emt 0:00:11]} 97. Qxh4 {[%emt 0:00:05]} e3 {[%emt 0:00:04]} 98. Qe1 {[%emt 0:01:40]} e2 {[%emt 0:01:04]} 99. Qb1+ {[%emt 0:00:52]} Kd2 {[%emt 0:03:52]} 100. Qa2+ {[%emt 0:00:04]} Ke3 {[%emt 0:00:08]} 101. Qa3+ {[%emt 0:00:10]} Kf2 {[%emt 0:01:30]} 102. Qf3+ {[%emt 0:00:16]} Ke1 {[%emt 0:00:04]} 103. g4 {[%emt 0:00:56]} Qf2+ {[%emt 0:00:28]} 0-1